bitfinex-derivatives/quotes_SOLF0:USTF0_20241120
["timestamp","ask_amount","ask_price","bid_price","bid_amount"]
[1732128782041,16.93014801,233.36,233.2,20.11014801]
[1732128782238,16.93014801,233.4,233.2,20.11014801]
[1732128782539,2.1407,233.34,233.2,20.11014801]
[1732128782837,16.93014801,233.4,233.2,20.11014801]
[1732128783143,16.93014801,233.32,233.18,2.1421]
[1732128783440,16.93014801,233.28,233.15,5.7407]
[1732128783637,16.93014801,233.32,233.15,5.7407]
[1732128784735,2.1416,233.25,233.15,5.7407]
[1732128784944,16.93014801,233.32,233.15,5.7407]
[1732128785141,2.1416,233.25,233.15,5.7407]
[1732128785444,16.93014801,233.32,233.15,5.7407]
[1732128786639,16.93014801,233.32,233.17,2.1422]
[1732128786846,9.55461078,233.31,233.16,16.93014801]
[1732128787145,16.93014801,233.32,233.16,16.93014801]
[1732128788646,16.93014801,233.32,233.21,2.1418]
[1732128788850,16.93014801,233.32,233.16,16.93014801]
[1732128789148,16.93014801,233.32,233.15,5.7407]
[1732128789349,7.86413513,233.31,233.15,5.7407]
[1732128789548,17.42193235,233.31,233.15,5.7407]
[1732128789749,9.55779722,233.3,233.15,5.7407]
[1732128789949,16.93014801,233.28,233.14,2.5604]
[1732128790249,2.1423,233.17,233.14,2.5604]
[1732128790449,16.93014801,233.24,233.09,2.4659]
[1732128790850,2.1426,233.14,233.09,2.4659]
[1732128791844,2.1428,233.12,233.06,2.1432]
[1732128792044,16.93014801,233.2,233.07,3.18]
[1732128792246,16.93014801,233.2,233.09,90.0]
[1732128792655,2.12451971,233.19,233.09,90.0]
[1732128792852,2.1425,233.14,233.09,90.0]
[1732128793153,16.93014801,233.24,233.09,90.0]
[1732128793345,2.1425,233.15,233.09,92.143]
[1732128793546,2.18516517,233.22,233.09,90.0]
[1732128793744,16.93014801,233.24,233.09,90.0]
[1732128793948,2.1425,233.15,233.09,90.0]
[1732128794153,2.10139804,233.17,233.09,90.0]
[1732128794352,20.11014801,233.2,233.09,90.0]
[1732128794552,2.1429,233.1,233.09,90.0]
[1732128795553,2.1429,233.1,233.09,18.91588576]
[1732128797554,16.93014801,233.16,233.09,18.91588576]
[1732128797854,2.10876652,233.19,233.09,18.91588576]
[1732128798052,16.93014801,233.16,233.09,18.91588576]
[1732128798351,2.1429,233.11,233.09,18.91588576]
[1732128798552,16.93014801,233.2,233.09,18.91588576]
[1732128798856,2.1423,233.17,233.09,18.91588576]
[1732128799049,19.12039204,233.2,233.09,18.91588576]
[1732128799254,0.72660348,233.16,233.09,18.91588576]
[1732128799658,0.72660348,233.19,233.09,18.91588576]
[1732128800151,1.45302479,233.18,233.09,18.91588576]
[1732128800758,0.72651497,233.18,233.11,2.1428]
[1732128800954,0.72651497,233.18,233.09,18.91588576]
[1732128801755,0.7265188,233.17,233.09,18.91588576]
[1732128801956,2.1429,233.1,233.09,18.91588576]
[1732128803863,0.72651497,233.18,233.09,18.91588576]
[1732128804156,16.93014801,233.16,233.09,18.91588576]
[1732128804459,2.1428,233.11,233.09,18.91588576]
[1732128804660,16.93014801,233.16,233.09,18.91588576]
[1732128804855,0.72665474,233.15,233.09,18.91588576]
[1732128805052,2.1429,233.1,233.09,18.91588576]
[1732128806956,16.93014801,233.16,233.09,18.91588576]
[1732128807157,0.72664826,233.15,233.09,18.91588576]
[1732128807554,16.93014801,233.2,233.09,18.91588576]
[1732128807751,2.1424,233.16,233.09,18.91588576]
[1732128807953,0.72653924,233.15,233.09,18.91588576]
[1732128808157,16.93014801,233.2,233.09,18.91588576]
[1732128808355,0.72652837,233.19,233.09,18.91588576]
[1732128808859,2.1425,233.15,233.09,18.91588576]
[1732128810160,16.93014801,233.2,233.09,18.91588576]
[1732128810462,0.72658996,233.19,233.09,18.91588576]
[1732128810861,0.72657713,233.18,233.09,18.91588576]
[1732128811064,16.93014801,233.16,233.09,18.91588576]
[1732128811264,16.93014801,233.12,232.88,30.86]
[1732128811457,0.72657713,233.11,232.96,5.1505]
[1732128812555,2.1437,233.02,232.96,5.1505]
[1732128812860,19.04703428,233.12,232.96,5.1505]
[1732128813056,2.1437,233.02,232.96,5.1505]
[1732128813363,16.93014801,233.08,232.96,5.1505]
[1732128814662,0.72684362,233.07,232.96,5.1505]
[1732128814858,2.1436,233.03,232.97,2.1441]
[1732128815056,19.04703428,233.12,232.97,2.1441]
[1732128815363,0.7267894,233.11,232.96,5.1505]
[1732128815863,16.93014801,233.16,232.97,16.93014801]
[1732128816065,0.72669419,233.15,232.97,16.93014801]
[1732128816865,2.1431,233.09,233.02,2.1436]
[1732128817459,16.93014801,233.16,233.02,5.3236]
[1732128817768,0.72668219,233.15,233.02,3.18]
[1732128817965,0.72668219,233.15,233.03,2.1436]
[1732128818169,0.72668219,233.15,233.02,3.18]
[1732128818357,2.1431,233.09,233.02,3.18]
[1732128818661,16.93014801,233.16,233.02,3.18]
[1732128818861,2.1429,233.11,233.02,3.18]
[1732128819064,3.18,233.18,233.05,2.1434]
[1732128819369,2.1427,233.13,233.03,2.4127]
[1732128819666,16.93014801,233.2,233.03,2.4127]
[1732128819856,16.93014801,233.16,233.03,2.4127]
[1732128820056,0.72655591,233.15,233.03,2.4127]
[1732128820258,16.93014801,233.2,233.03,2.4127]
[1732128820259,16.93014801,233.2,233.04,2.1434]
[1732128820460,2.1428,233.12,233.04,2.1434]
[1732128820657,2.12527644,233.19,233.05,2.1434]
[1732128820871,16.93014801,233.2,233.03,2.4127]
[1732128821058,0.72656878,233.18,233.03,2.4127]
[1732128821262,2.12843297,233.17,233.03,2.4127]
[1732128821464,0.72657473,233.17,233.03,2.4127]
[1732128821665,0.72657473,233.16,233.03,2.4127]
[1732128821866,2.143,233.1,233.03,4.5562]
[1732128822061,2.143,233.1,233.03,2.4127]
[1732128822758,2.11514099,233.18,233.03,2.4127]
[1732128822961,2.143,233.09,233.03,2.4127]
[1732128823359,2.1431,233.08,233.03,4.5562]
[1732128823868,16.93014801,233.16,233.03,2.4127]
[1732128824067,0.72608216,233.15,233.03,2.4127]
[1732128824368,16.93014801,233.12,232.96,8.3305]
[1732128824569,0.72608216,233.11,232.97,2.4104]
[1732128824867,0.72608216,233.11,232.99,2.1439]
[1732128825163,0.72608216,233.11,232.97,2.4104]
[1732128825362,16.93014801,233.12,232.97,2.4104]
[1732128825562,2.1433,233.07,233.0,2.1438]
[1732128825762,16.93014801,233.12,233.0,2.1438]
[1732128825958,16.93014801,233.12,232.97,2.4104]
[1732128826267,0.72593641,233.11,232.97,2.4104]
[1732128826661,2.1436,233.04,232.98,2.144]
[1732128826869,16.93014801,233.12,232.98,2.144]
[1732128827060,0.72585378,233.11,232.97,2.4104]
[1732128827466,16.93014801,233.12,232.97,2.4104]
[1732128828562,0.72589281,233.11,232.97,2.4104]
[1732128828863,2.1434,233.05,232.99,2.1439]
[1732128829066,2.1434,233.05,232.97,2.4104]
[1732128829860,2.1434,233.05,233.0,2.1438]
[1732128830268,2.1435,233.04,232.97,2.4104]
[1732128830460,16.93014801,233.12,232.97,2.4104]
[1732128830669,0.72599781,233.11,232.97,5.5904]
[1732128830969,16.93014801,233.12,232.97,7.7344]
[1732128831164,0.72604354,233.11,232.97,7.7344]
[1732128832067,0.72604354,233.11,232.97,5.5904]
[1732128832367,0.72604354,233.11,232.98,2.144]
[1732128832368,2.1436,233.04,232.98,2.144]
[1732128833068,2.1436,233.03,232.98,2.144]
[1732128833266,2.1436,233.03,232.97,5.5904]
[1732128833470,2.1436,233.03,232.97,7.7345]
[1732128834568,9.57555997,233.11,232.97,7.7345]
[1732128834770,2.1437,233.02,232.97,7.7345]
[1732128834970,2.1437,233.02,232.97,4.5545]
[1732128835169,2.16028575,233.15,232.97,2.4104]
[1732128835170,2.144,232.98,232.97,2.4104]
[1732128835469,2.144,232.98,232.96,5.1505]
[1732128835470,3.18,233.09,232.96,5.1505]
[1732128835669,16.93014801,233.07,232.96,5.1505]
[1732128836761,10.30116881,233.06,232.9,10.9997]
[1732128836969,0.72561244,233.05,232.9,10.9997]
[1732128837164,9.57555637,233.06,232.9,10.9997]
[1732128837165,17.45416017,233.06,232.9,10.9997]
[1732128837369,2.1439,233.0,232.9,13.1445]
[1732128837564,16.93014801,233.07,232.9,13.1445]
[1732128837770,8.60177488,233.06,232.9,10.9997]
[1732128837969,2.1438,233.01,232.91,2.1446]
[1732128838165,17.44952579,233.06,232.91,2.1446]
[1732128838473,2.1438,233.01,232.91,2.1446]
[1732128838667,16.93014801,233.07,232.92,2.1446]
[1732128838969,0.72552119,233.06,232.9,10.9997]
[1732128839171,17.45115157,233.09,232.95,2.1442]
[1732128839369,18.17658124,233.08,232.95,2.1442]
[1732128839567,0.72542967,233.07,232.95,2.1442]
[1732128839872,17.44607606,233.09,232.95,2.1442]
[1732128840063,10.2966622,233.08,232.95,2.1442]
[1732128840265,2.1438,233.01,232.95,2.1442]
[1732128840667,17.44364884,233.09,232.95,2.1442]
[1732128840862,18.16897701,233.08,232.95,2.1442]
[1732128841072,3.18,233.1,232.95,2.1442]
[1732128841275,18.16940472,233.09,232.95,2.1442]
[1732128841475,2.1438,233.01,232.95,2.1442]
[1732128841970,2.1435,233.04,232.93,16.93014801]
[1732128842368,3.18,233.1,232.93,16.93014801]
[1732128842369,3.18,233.1,233.0,2.1438]
[1732128842572,2.17723419,233.13,233.01,5.0622]
[1732128842763,10.60046109,233.1,233.01,5.0622]
[1732128843166,2.1436,233.04,233.01,5.0622]
[1732128843372,10.60046109,233.1,233.01,5.0622]
[1732128843571,2.1432,233.07,233.01,5.0622]
[1732128843874,10.60046109,233.1,233.01,5.0622]
[1732128844073,0.72555154,233.09,233.01,5.0622]
[1732128844467,10.60046109,233.07,232.93,3.18]
[1732128844766,10.60046109,233.07,232.94,2.4186]
[1732128844970,2.1438,233.0,232.94,4.5629]
[1732128845165,2.1438,233.0,232.94,2.4186]
[1732128846268,2.1438,233.0,232.95,2.1443]
[1732128846466,2.85320988,233.12,232.98,10.60046109]
[1732128846673,8.60087598,233.11,232.94,2.4186]
[1732128846874,10.60046109,233.07,232.94,2.4186]
[1732128847075,2.1436,233.03,232.94,2.4186]
[1732128847276,9.57286952,233.11,233.0,2.1438]
[1732128847472,0.7249251,233.1,233.0,3.18]
[1732128847668,10.60046109,233.16,233.01,2.5613]
[1732128847868,10.60046109,233.16,233.01,5.0882]
[1732128847869,0.72487863,233.15,233.01,5.0882]
[1732128848074,7.87158029,233.12,233.02,10.60046109]
[1732128848270,7.87158029,233.15,233.05,10.60046109]
[1732128848476,9.56906013,233.1,233.06,2.5614]
[1732128848673,2.1427,233.13,233.06,2.5614]
[1732128848884,7.87158029,233.15,233.06,2.5614]
[1732128849176,0.72490902,233.14,233.06,2.5614]
[1732128849380,2.1427,233.13,233.06,2.5614]
[1732128849573,7.87158029,233.15,233.07,5.3232]
[1732128849770,7.87158029,233.15,233.08,10.60046109]
[1732128849978,7.87158029,233.15,233.11,10.60046109]
[1732128850277,0.19652,233.2,233.11,10.60046109]
[1732128850478,2.33852,233.2,233.12,2.5878]
[1732128850978,0.19652,233.2,233.14,10.60046109]
[1732128851179,0.19652,233.2,233.15,3.18]
[1732128852080,2.1421,233.19,233.15,3.18]
[1732128852281,0.19652,233.2,233.15,3.18]
[1732128852681,2.1422,233.18,233.15,3.18]
[1732128852977,0.19652,233.2,233.15,3.18]
[1732128853177,0.72581643,233.19,233.12,2.5878]
[1732128853381,10.28994119,233.22,233.09,3.18]
[1732128853579,2.1424,233.16,233.09,3.18]
[1732128854079,2.1424,233.16,233.1,2.1429]
[1732128854282,9.56358414,233.23,233.09,3.18]
[1732128854579,0.72592357,233.22,233.14,2.1425]
[1732128854785,2.1419,233.22,233.09,3.18]
[1732128854985,9.56564684,233.27,233.09,3.18]
[1732128855181,0.72605756,233.26,233.09,3.18]
[1732128855486,0.72608324,233.25,233.16,16.94405438]
[1732128855681,9.56231214,233.32,233.17,8.3671]
[1732128855882,10.28839849,233.31,233.19,2.1421]
[1732128856081,0.72611023,233.3,233.19,2.1421]
[1732128856281,0.72611023,233.29,233.17,8.3671]
[1732128856486,2.86741023,233.28,233.23,2.1417]
[1732128856689,2.1413,233.28,233.24,3.18]
[1732128857186,9.5563488,233.34,233.24,3.18]
[1732128857386,0.72610875,233.33,233.24,3.18]
[1732128857788,0.72610875,233.32,233.24,3.18]
[1732128857985,0.72610875,233.31,233.24,3.18]
[1732128858191,2.86730875,233.3,233.24,5.3216]
[1732128858379,16.94405438,233.36,233.24,3.18]
[1732128858579,0.72610435,233.35,233.24,3.18]
[1732128859281,9.53358618,233.39,233.24,3.18]
[1732128859583,0.72603357,233.38,233.24,3.18]
[1732128860090,0.72604792,233.37,233.24,3.18]
[1732128860492,0.72604792,233.38,233.24,3.18]
[1732128860884,0.72604792,233.37,233.24,3.18]
[1732128861190,0.72604792,233.39,233.24,3.18]
[1732128861388,2.1406,233.36,233.29,2.1412]
[1732128861794,0.72604792,233.35,233.29,2.1412]
[1732128862091,2.1406,233.36,233.29,2.1412]
[1732128863291,16.94405438,233.44,233.32,2.1409]
[1732128863490,0.72594361,233.43,233.32,5.3209]
[1732128863690,0.72594361,233.43,233.33,2.5035]
[1732128863894,2.86898355,233.47,233.33,2.5035]
[1732128864087,0.72594361,233.42,233.33,2.5035]
[1732128864392,0.72594361,233.41,233.33,2.5035]
[1732128864798,0.72594361,233.4,233.29,2.5499]
[1732128865091,2.1403,233.39,233.29,5.7299]
[1732128865292,0.72594361,233.39,233.29,5.7299]
[1732128865694,2.86634361,233.38,233.29,5.7299]
[1732128865893,0.72594361,233.38,233.29,5.7299]
[1732128866096,16.94405438,233.44,233.29,5.7299]
[1732128866290,2.1403,233.39,233.32,2.1409]
[1732128866486,0.72592496,233.38,233.29,5.7299]
[1732128866687,0.72592496,233.38,233.32,2.1408]
[1732128866890,16.94405438,233.44,233.32,2.1408]
[1732128867100,16.94405438,233.44,233.29,5.7299]
[1732128867293,2.1401,233.42,233.35,2.1405]
[1732128867592,0.72591984,233.43,233.36,5.7999]
[1732128867795,0.72591984,233.41,233.37,3.18]
[1732128867993,16.94405438,233.52,233.37,3.18]
[1732128868189,2.14,233.42,233.37,3.18]
[1732128868894,2.1398,233.44,233.38,2.1403]
[1732128869088,16.94405438,233.52,233.37,3.18]
[1732128869489,0.72555697,233.5,233.37,3.18]
[1732128869691,1.45115538,233.5,233.37,3.18]
[1732128870192,16.94405438,233.48,233.37,3.18]
[1732128870589,0.72560402,233.47,233.37,3.18]
[1732128870794,2.1399,233.43,233.37,3.18]
[1732128870997,0.72555697,233.5,233.37,3.18]
[1732128871394,0.72563174,233.49,233.37,3.18]
[1732128871791,2.1401,233.41,233.37,3.18]
[1732128872193,16.94405438,233.48,233.37,3.18]
[1732128872399,2.1399,233.44,233.38,2.1403]
[1732128873099,2.1399,233.44,233.37,3.18]
[1732128873100,10.56837663,233.46,233.37,3.18]
[1732128873296,10.56837663,233.4,233.29,5.7099]
[1732128873506,2.1405,233.37,233.29,7.8511]
[1732128873794,10.56837663,233.43,233.29,5.7099]
[1732128873999,0.72577939,233.42,233.29,5.7099]
[1732128874193,2.1404,233.38,233.31,2.1409]
[1732128874397,10.56837663,233.43,233.29,5.7099]
[1732128874597,0.72578856,233.42,233.29,5.7099]
[1732128875005,2.1406,233.36,233.3,2.1411]
[1732128875804,10.56837663,233.43,233.29,5.7099]
[1732128876104,0.72585454,233.42,233.29,5.7099]
[1732128876295,2.1406,233.36,233.3,2.1411]
[1732128876801,2.1407,233.35,233.3,2.1411]
[1732128876999,1.45171351,233.42,233.33,2.1408]
[1732128877303,0.725776,233.41,233.29,5.7099]
[1732128877994,0.725776,233.41,233.37,72.3609]
[1732128878401,10.56837663,233.4,233.37,72.3609]
[1732128878599,2.1403,233.38,233.37,72.3609]
[1732128879199,2.866076,233.38,233.37,64.4987]
[1732128879702,2.86618813,233.38,233.37,64.4987]
[1732128879898,2.86618813,233.38,233.37,4.92771289]
[1732128880103,2.1403,233.38,233.37,4.92771289]
[1732128880303,2.86618896,233.38,233.37,4.92771289]
[1732128882009,0.72588896,233.38,233.22,2.4755]
[1732128882208,0.72588896,233.39,233.13,3.16]
[1732128882409,10.56837663,233.28,233.13,3.16]
[1732128882712,2.1418,233.23,233.17,2.1423]
[1732128882913,2.1418,233.23,233.13,3.16]
[1732128883212,10.56837663,233.28,233.13,3.16]
[1732128883511,10.56837663,233.28,233.15,2.1424]
[1732128884107,2.1418,233.22,233.15,2.1424]
[1732128884509,10.56837663,233.28,233.13,2.1426]
[1732128884814,10.56837663,233.22,233.09,18.22077663]
[1732128885009,10.56837663,233.22,233.1,3.16]
[1732128885216,10.56837663,233.22,233.09,20.36377663]
[1732128885406,10.56837663,233.22,233.1,3.16]
[1732128886311,2.1421,233.19,233.12,10.56837663]
[1732128886512,12.67959175,233.3,233.15,10.56837663]
[1732128886713,10.56837663,233.3,233.15,12.71077663]
[1732128887309,10.56837663,233.27,233.13,2.1426]
[1732128887614,2.16645697,233.3,233.26,10.56837663]
[1732128887912,238.7105111,233.47,233.34,10.56837663]
[1732128888118,9.48444933,233.43,233.35,5.6964]
[1732128888414,9.48444933,233.43,233.37,10.56837663]
[1732128888722,0.72599574,233.46,233.37,16.90260002]
[1732128889013,0.72599574,233.46,233.39,2.1402]
[1732128889216,52.35281643,233.57,233.37,16.90260002]
[1732128889512,16.90260002,233.53,233.35,5.6964]
[1732128889915,2.1395,233.48,233.39,2.1402]
[1732128890319,3.16,233.54,233.39,2.1402]
[1732128890521,2.1393,233.5,233.4,2.1401]
[1732128891419,54.46835607,233.57,233.41,2.4586]
[1732128891715,16.90260002,233.53,233.41,2.4586]
[1732128891919,2.1395,233.47,233.41,2.4586]
[1732128894320,16.90260002,233.53,233.41,2.4586]
[1732128894522,0.72555389,233.52,233.41,2.4586]
[1732128894920,2.1397,233.45,233.41,2.4586]
[1732128895217,16.90260002,233.49,233.35,2.5364]
[1732128895526,0.72561082,233.48,233.35,2.5364]
[1732128895721,16.90260002,233.45,233.32,3.16]
[1732128895920,0.72561082,233.44,233.32,3.16]
[1732128896320,2.1405,233.36,233.32,3.16]
[1732128896726,18.99538759,233.45,233.32,3.16]
[1732128897019,2.1404,233.38,233.32,3.16]
[1732128898228,16.90260002,233.49,233.32,5.3008]
[1732128898424,10.25035002,233.48,233.32,5.3008]
[1732128898624,16.90260002,233.49,233.32,5.3008]
[1732128898826,0.72572672,233.48,233.32,5.3008]
[1732128899329,9.53005609,233.48,233.32,5.3008]
[1732128899525,0.72572277,233.47,233.32,5.3008]
[1732128899725,0.72572277,233.47,233.32,3.16]
[1732128899929,0.72572277,233.47,233.33,2.1408]
[1732128900125,0.72572277,233.48,233.32,3.16]
[1732128900327,16.90260002,233.45,233.32,3.16]
[1732128900626,2.19247245,233.44,233.32,3.16]
[1732128900829,2.1404,233.38,233.32,3.16]
[1732128901032,0.72579977,233.43,233.32,3.16]
[1732128901334,16.90260002,233.41,233.28,5.0561]
[1732128901920,2.1408,233.33,233.28,5.0561]
[1732128902728,2.1409,233.32,233.28,5.0561]
[1732128902931,19.02440796,233.41,233.28,5.0561]
[1732128903330,2.141,233.31,233.28,5.0561]
[1732128903623,2.141,233.31,233.04,31.86150184]
[1732128903624,16.90260002,233.33,233.18,3.22]
[1732128903925,0.72603968,233.32,233.16,3.22]
[1732128904432,2.1418,233.23,233.16,7.9953]
[1732128904625,16.90260002,233.33,233.16,5.853]
[1732128904831,16.90260002,233.29,233.16,2.633]
[1732128905024,0.72613974,233.28,233.16,2.633]
[1732128905332,2.1413,233.28,233.2,2.142]
[1732128905525,16.90260002,233.33,233.16,2.633]
[1732128905726,16.90260002,233.29,233.16,2.633]
[1732128905925,2.15286578,233.28,233.16,2.633]
[1732128906131,2.1422,233.19,233.16,2.633]
[1732128906323,2.15286578,233.28,233.16,2.633]
[1732128906631,0.72594554,233.27,233.16,2.633]
[1732128906827,2.1422,233.18,233.16,2.633]
[1732128907022,0.72594554,233.27,233.16,2.633]
[1732128907227,2.1415,233.26,233.16,2.633]
[1732128907432,0.72564529,233.26,233.16,2.633]
[1732128907827,16.90260002,233.29,233.16,2.633]
[1732128908033,0.72546524,233.28,233.18,2.1421]
[1732128908332,16.90260002,233.33,233.16,2.633]
[1732128908531,0.72529184,233.32,233.17,2.1423]
[1732128908723,0.72529184,233.32,233.16,2.633]
[1732128909232,16.90260002,233.29,233.16,2.633]
[1732128909530,2.16278571,233.28,233.16,2.633]
[1732128909725,2.1416,233.25,233.16,2.633]
[1732128909925,2.16964285,233.27,233.16,2.633]
[1732128910125,3.22,233.35,233.16,2.633]
[1732128910126,16.90260002,233.25,233.16,2.633]
[1732128910325,2.1426,233.14,233.06,2.1432]
[1732128910531,2.1426,233.14,233.07,3.22]
[1732128910925,2.1426,233.14,233.07,5.3632]
[1732128911224,2.1555,233.23,233.07,3.22]
[1732128911424,16.90260002,233.25,233.07,3.22]
[1732128911735,16.90260002,233.25,233.07,5.3632]
[1732128911736,2.1426,233.14,233.07,5.3632]
[1732128912230,2.1422,233.18,233.07,5.3632]
[1732128912430,0.72553106,233.22,233.07,5.3632]
[1732128912631,0.72551215,233.21,233.07,5.3632]
[1732128912929,0.72551215,233.21,233.07,3.22]
[1732128913135,2.1429,233.1,233.07,3.22]
[1732128913324,16.90260002,233.21,233.07,3.22]
[1732128913729,0.72572036,233.2,233.07,3.22]
[1732128914728,2.1424,233.17,233.07,3.22]
[1732128914924,19.02084009,233.25,233.07,3.22]
[1732128915123,2.142,233.2,233.09,2.1429]
[1732128915327,19.02084009,233.25,233.07,3.22]
[1732128915730,16.90260002,233.25,233.07,3.22]
[1732128915932,3.22,233.28,233.09,16.90260002]
[1732128915933,0.72561447,233.24,233.09,16.90260002]
[1732128916134,0.72561447,233.23,233.09,16.90260002]
[1732128916330,0.72561447,233.22,233.07,3.22]
[1732128916529,2.1418,233.22,233.1,2.1429]
[1732128916729,0.72552165,233.21,233.1,2.1429]
[1732128916927,0.72552165,233.21,233.08,3.22]
[1732128917128,2.1424,233.17,233.11,2.1427]
[1732128917429,3.22,233.28,233.12,5.0054]
[1732128917631,2.1419,233.21,233.15,2.1424]
[1732128917937,16.90260002,233.29,233.15,3.22]
[1732128918330,19.07343846,233.29,233.15,3.22]
[1732128919334,2.1422,233.18,233.15,3.22]
[1732128920431,19.07343846,233.29,233.15,3.22]
[1732128920632,0.72566773,233.28,233.15,3.22]
[1732128920932,2.1416,233.25,233.15,3.22]
[1732128921129,0.72566773,233.28,233.18,2.1422]
[1732128921329,16.90260002,233.33,233.15,3.22]
[1732128921531,2.1415,233.26,233.16,16.90260002]
[1732128921734,2.1415,233.26,233.19,2.142]
[1732128922233,2.1415,233.26,233.2,2.142]
[1732128922829,2.1415,233.26,233.17,2.5023]
[1732128922830,16.90260002,233.37,233.17,2.5023]
[1732128923030,0.72588887,233.36,233.22,2.1417]
[1732128923239,0.72588887,233.36,233.23,8.4258]
[1732128923636,2.1414,233.27,233.23,8.4258]
[1732128924338,16.90260002,233.37,233.23,8.4258]
[1732128924537,0.72587828,233.36,233.23,8.4258]
[1732128924839,0.72587828,233.36,233.23,10.5675]
[1732128925531,16.90260002,233.37,233.23,10.5675]
[1732128925835,16.90260002,233.37,233.23,8.4258]
[1732128925836,0.72576534,233.36,233.23,8.4258]
[1732128926137,16.90260002,233.33,233.23,2.6123]
[1732128926433,16.90260002,233.33,233.17,2.5023]
[1732128926434,2.1418,233.22,233.18,3.22]
[1732128927031,2.1412,233.29,233.18,3.22]
[1732128927237,0.72569977,233.28,233.18,3.22]
[1732128927631,16.90260002,233.33,233.18,3.22]
[1732128927632,2.1417,233.23,233.18,3.22]
[1732128928431,4.28,233.42,233.18,3.22]
[1732128928432,16.90260002,233.37,233.18,3.22]
[1732128928631,0.72594338,233.36,233.2,16.90260002]
[1732128928836,2.1412,233.29,233.22,2.1418]
[1732128929033,5.34158218,233.38,233.2,16.90260002]
[1732128929343,17.62850767,233.37,233.2,16.90260002]
[1732128929532,0.72590765,233.36,233.2,16.90260002]
[1732128929733,0.72602415,233.36,233.2,16.90260002]
[1732128930043,0.72602415,233.36,233.21,2.1419]
[1732128930442,0.72602415,233.36,233.2,16.90260002]
[1732128931135,0.72602415,233.36,233.2,2.142]
[1732128931742,2.1414,233.27,233.2,2.142]
[1732128932141,16.90260002,233.37,233.2,2.142]
[1732128932647,2.1414,233.27,233.2,2.142]
[1732128932946,16.90260002,233.37,233.2,2.142]
[1732128933147,0.72613249,233.36,233.18,3.22]
[1732128933343,2.1417,233.24,233.18,5.3622]
[1732128933546,16.90260002,233.33,233.18,3.16]
[1732128933743,2.1413,233.28,233.18,5.3021]
[1732128933941,16.90260002,233.33,233.18,3.16]
[1732128934243,0.72616976,233.32,233.18,3.16]
[1732128934439,0.72616976,233.32,233.18,5.3022]
[1732128934840,0.72616976,233.32,233.18,3.16]
[1732128935346,0.72616976,233.32,233.19,2.1421]
[1732128936246,0.7261565,233.31,233.2,2.142]
[1732128936451,1.45230128,233.31,233.2,2.142]
[1732128936654,0.72614478,233.3,233.18,3.16]
[1732128936942,2.1414,233.27,233.21,2.1419]
[1732128937248,2.1414,233.27,233.18,3.16]
[1732128937249,0.7261565,233.31,233.18,3.16]
[1732128937444,0.7261026,233.3,233.18,3.16]
[1732128937753,0.72611222,233.29,233.18,3.16]
[1732128938046,0.7261565,233.31,233.18,3.16]
[1732128938047,0.72611222,233.3,233.18,3.16]
[1732128938251,0.72611212,233.29,233.18,3.16]
[1732128938447,0.7261565,233.31,233.18,3.16]
[1732128938750,0.72610264,233.3,233.18,3.16]
[1732128938948,2.1414,233.27,233.21,2.1418]
[1732128939244,236.56269965,233.49,233.24,10.58216653]
[1732128939445,236.56269965,233.49,233.32,10.58216653]
[1732128939650,2.14,233.43,233.33,8.3368]
[1732128939845,10.58216653,233.51,233.33,8.3368]
[1732128940043,9.54206934,233.5,233.33,8.3368]
[1732128940446,0.72000937,233.49,233.35,10.58216653]
[1732128941248,2.12482837,233.67,233.48,10.58216653]
[1732128941549,2.12482837,233.67,233.53,10.58216653]
[1732128941744,7.46774181,233.67,233.53,10.58216653]
[1732128942049,2.15196365,233.66,233.53,10.58216653]
[1732128942347,2.85186541,233.65,233.56,10.58216653]
[1732128942553,0.71396541,233.64,233.57,3.16]
[1732128942848,9.52444321,233.67,233.57,3.16]
[1732128943044,0.71387026,233.66,233.57,3.16]